[Event "8th Brazilian Open SESC Caioba 2024"]
[Site "Caioba"]
[Date "2024.06.30"]
[Round "8.9"]
[White "Ribeiro, Matheus Mendes Domin"]
[Black "Sunye Neto, Jaime"]
[Result "1/2-1/2"]
[ECO "A34"]
[WhiteElo "2241"]
[BlackElo "2398"]
[Annotator "RC"]
[PlyCount "250"]
[EventDate "2024.06.15"]
[EventCountry "BRA"]
[SourceTitle "playchess.com"]
[Source "ChessBase"]
[SourceQuality "1"]
[TimeControl "5400+30"]

1. c4 {[%emt 0:00:07]} Nf6 {[%emt 0:00:15]} 2. Nc3 {[%emt 0:00:11]} c5 {[%emt 0:00:57]} 3. Nf3 {[%emt 0:00:28]} d5 {[%emt 0:06:17]} 4. cxd5 {[%emt 0:00:54]} Nxd5 {[%emt 0:01:27]} 5. g3 {[%emt 0:00:46]} Nc6 {[%emt 0:00:26]} 6. Bg2 {[%emt 0:00:08]} Nc7 {[%emt 0:00:14]} 7. a3 {[%emt 0:05:06]} f6 {[%emt 0:10:44]} 8. b4 {[%emt 0:07:43]} e5 {[%emt 0:00:44]} 9. b5 {[%emt 0:00:24]} Nd4 {[%emt 0:12:06]} 10. Rb1 {[%emt 0:00:12]} Be7 {[%emt 0:05:42]} 11. e3 {[%emt 0:01:37]} Nde6 {[%emt 0:00:58]} 12. O-O {[%emt 0:05:32]} O-O {[%emt 0:02:05]} 13. d4 {[%emt 0:20:39]} cxd4 {[%emt 0:00:34]} 14. exd4 {[%emt 0:00:07]} exd4 {[%emt 0:00:08]} 15. Ne2 {[%emt 0:01:03]} d3 {[%emt 0:08:47]} 16. Nf4 {[%emt 0:00:45]} Nxf4 {[%emt 0:01:43]} 17. Bxf4 {[%emt 0:00:05]} Ne6 {[%emt 0:00:46]} 18. Be3 {[%emt 0:03:19]} Bc5 {[%emt 0:02:33]} 19. Re1 {[%emt 0:03:30]} Qd6 {[%emt 0:13:37]} 20. Nd2 {[%emt 0:07:45]} Bxe3 {[%emt 0:04:19]} 21. Rxe3 {[%emt 0:00:11]} Rd8 {[%emt 0:00:39]} 22. Qb3 {[%emt 0:02:33]} Kf8 {[%emt 0:00:24]} 23. Ne4 {[%emt 0:09:39]} Qe7 {[%emt 0:15:36]} 24. Rxd3 {[%emt 0:01:36]} Bd7 {[%emt 0:01:22]} 25. Re3 {[%emt 0:13:19]} Nd4 {[%emt 0:01:00]} 26. Qb2 {[%emt 0:00:04]} Bf5 {[%emt 0:01:02]} 27. Rd1 {[%emt 0:02:20]} Ne6 {[%emt 0:02:48]} 28. Rde1 {[%emt 0:00:53]} Rac8 {[%emt 0:01:11]} 29. g4 {[%emt 0:01:43]} Bxg4 {[%emt 0:00:33]} 30. h3 {[%emt 0:00:02]} Bh5 {[%emt 0:00:35]} 31. Nxf6 {[%emt 0:03:25]} Qxf6 {[%emt 0:00:07]} 32. Qxf6+ {[%emt 0:00:09]} gxf6 {[%emt 0:00:12]} 33. Rxe6 {[%emt 0:00:01]} Bf7 {[%emt 0:01:46]} 34. Rxf6 {[%emt 0:00:56]} Rc3 {[%emt 0:00:21]} 35. Re5 {[%emt 0:01:32]} Kg7 {[%emt 0:00:52]} 36. Rf4 {[%emt 0:00:04]} Rd7 {[%emt 0:00:34]} 37. a4 {[%emt 0:00:59]} Rcd3 {[%emt 0:01:23]} 38. Rg5+ {[%emt 0:02:40]} Bg6 {[%emt 0:00:38]} 39. h4 {[%emt 0:01:26]} Kh6 {[%emt 0:00:44]} 40. Re5 {[%emt 0:01:30]} R3d4 {[%emt 0:00:26]} 41. Rxd4 {[%emt 0:00:10]} Rxd4 {[%emt 0:00:02]} 42. a5 {[%emt 0:00:56]} Ra4 {[%emt 0:00:33]} 43. b6 {[%emt 0:00:23]} axb6 {[%emt 0:00:46]} 44. axb6 {[%emt 0:00:03]} Rxh4 {[%emt 0:01:43]} 45. Bxb7 {[%emt 0:00:35]} Rb4 {[%emt 0:00:07]} 46. Re6 {[%emt 0:00:10]} Kg5 {[%emt 0:00:08]} 47. Bg2 {[%emt 0:00:45]} Bf5 {[%emt 0:00:19]} 48. Rd6 {[%emt 0:00:52]} Bc8 {[%emt 0:00:07]} 49. Rd8 {[%emt 0:00:42]} Ba6 {[%emt 0:00:02]} 50. Rb8 {[%emt 0:00:15]} h5 {[%emt 0:01:30]} 51. b7 {[%emt 0:03:35]} Kh4 {[%emt 0:00:14]} 52. Bf3 {[%emt 0:01:10]} Rb5 {[%emt 0:00:23]} 53. Kg2 {[%emt 0:00:41]} Rg5+ {[%emt 0:00:04]} 54. Kh2 {[%emt 0:00:18]} Rf5 {[%emt 0:00:02]} 55. Kg2 {[%emt 0:01:17]} Rg5+ {[%emt 0:00:02]} 56. Kh1 {[%emt 0:00:08]} Rf5 {[%emt 0:00:11]} 57. Bg2 {[%emt 0:01:03]} Rxf2 {[%emt 0:01:09]} 58. Rd8 {[%emt 0:00:26]} Bxb7 {[%emt 0:00:10]} 59. Bxb7 {[%emt 0:00:04]} Rb2 {[%emt 0:00:38]} 60. Bg2 {[%emt 0:00:20]} Rb3 {[%emt 0:00:15]} 61. Kh2 {[%emt 0:00:31]} Ra3 {[%emt 0:00:16]} 62. Rd4+ {[%emt 0:00:34]} Kg5 {[%emt 0:00:07]} 63. Bf1 {[%emt 0:00:02]} Ra5 {[%emt 0:00:54]} 64. Kg3 {[%emt 0:00:17]} Re5 {[%emt 0:00:11]} 65. Bg2 {[%emt 0:00:09]} Ra5 {[%emt 0:00:58]} 66. Bf3 {[%emt 0:00:04]} Rc5 {[%emt 0:00:56]} 67. Rh4 {[%emt 0:00:06]} Kg6 {[%emt 0:00:19]} 68. Kf4 {[%emt 0:00:07]} Rf5+ {[%emt 0:00:19]} 69. Ke4 {[%emt 0:00:56]} Ra5 {[%emt 0:00:03]} 70. Rh1 {[%emt 0:00:06]} Kf6 {[%emt 0:02:09]} 71. Bxh5 {[%emt 0:00:42]} Ra4+ {[%emt 0:00:06]} 72. Kf3 {[%emt 0:00:15]} Ra3+ {[%emt 0:00:09]} 73. Kf4 {[%emt 0:00:10]} Ra4+ {[%emt 0:00:13]} 74. Kg3 {[%emt 0:00:05]} Rb4 {[%emt 0:00:20]} 75. Bf3 {[%emt 0:00:28]} Ra4 {[%emt 0:00:30]} 76. Kf2 {[%emt 0:00:11]} Ra3 {[%emt 0:00:13]} 77. Rh4 {[%emt 0:00:28]} Kg5 {[%emt 0:00:40]} 78. Rb4 {[%emt 0:00:13]} Kf5 {[%emt 0:00:15]} 79. Kg3 {[%emt 0:00:05]} Re3 {[%emt 0:00:37]} 80. Rh4 {[%emt 0:00:54]} Re5 {[%emt 0:02:24]} 81. Rh8 {[%emt 0:01:49]} Kf6 {[%emt 0:01:46]} 82. Kf4 {[%emt 0:00:20]} Rf5+ {[%emt 0:00:03]} 83. Ke4 {[%emt 0:00:06]} Re5+ {[%emt 0:00:01]} 84. Kd4 {[%emt 0:00:29]} Re7 {[%emt 0:01:40]} 85. Bd5 {[%emt 0:00:08]} Re1 {[%emt 0:00:33]} 86. Rf8+ {[%emt 0:00:30]} Kg7 {[%emt 0:02:48]} 87. Rf4 {[%emt 0:00:06]} Re8 {[%emt 0:00:00]} 88. Kc5 {[%emt 0:01:17]} Kg6 {[%emt 0:00:00]} 89. Kd6 {[%emt 0:00:25]} Kg5 {[%emt 0:00:00]} 90. Rf2 {[%emt 0:01:58]} Re1 {[%emt 0:00:00]} 91. Be6 {[%emt 0:00:27]} Rd1+ {[%emt 0:00:00]} 92. Ke7 {[%emt 0:00:06]} Re1 {[%emt 0:00:01]} 93. Rf5+ {[%emt 0:00:13]} Kg6 {[%emt 0:00:20]} 94. Rf4 {[%emt 0:00:05]} Re5 {[%emt 0:00:31]} 95. Rh4 {[%emt 0:02:03]} Ra5 {[%emt 0:00:21]} 96. Bf7+ {[%emt 0:00:10]} Kg7 {[%emt 0:00:42]} 97. Rg4+ {[%emt 0:00:06]} Kh6 {[%emt 0:01:24]} 98. Kf6 {[%emt 0:00:07]} Ra6+ {[%emt 0:00:27]} 99. Be6 {[%emt 0:00:04]} Kh5 {[%emt 0:00:13]} 100. Rg3 {[%emt 0:01:10]} Ra4 {[%emt 0:00:17]} 101. Bf5 {[%emt 0:02:16]} Rb4 {[%emt 0:00:48]} 102. Rg7 {[%emt 0:01:20]} Kh4 {[%emt 0:00:28]} 103. Rh7+ {[%emt 0:00:07]} Kg3 {[%emt 0:00:09]} 104. Rh3+ {[%emt 0:00:08]} Kg2 {[%emt 0:00:11]} 105. Kg5 {[%emt 0:00:05]} Kf2 {[%emt 0:00:27]} 106. Rc3 {[%emt 0:00:22]} Ke2 {[%emt 0:00:06]} 107. Kf6 {[%emt 0:00:26]} Kd2 {[%emt 0:00:21]} 108. Rd3+ {[%emt 0:00:34]} Ke2 {[%emt 0:00:08]} 109. Rh3 {[%emt 0:00:05]} Kd2 {[%emt 0:00:52]} 110. Ke5 {[%emt 0:00:20]} Rb5+ {[%emt 0:00:07]} 111. Kf4 {[%emt 0:00:13]} Rb8 {[%emt 0:04:37]} 112. Rd3+ {[%emt 0:00:12]} Ke2 {[%emt 0:00:00]} 113. Rc3 {[%emt 0:00:04]} Rf8 {[%emt 0:00:00]} 114. Rc2+ {[%emt 0:00:46]} Kd1 {[%emt 0:00:00]} 115. Rg2 {[%emt 0:00:21]} Rf7 {[%emt 0:00:00]} 116. Ke5 {[%emt 0:00:19]} Kc1 {[%emt 0:00:51]} 117. Be4 {[%emt 0:00:38]} Rd7 {[%emt 0:00:18]} 118. Rc2+ {[%emt 0:01:07]} Kd1 {[%emt 0:00:11]} 119. Kf4 {[%emt 0:00:07]} Rd2 {[%emt 0:00:42]} 120. Rc3 {[%emt 0:00:28]} Re2 {[%emt 0:01:16]} 121. Kf3 {[%emt 0:01:18]} Rh2 {[%emt 0:00:28]} 122. Ke3 {[%emt 0:01:28]} Re2+ {[%emt 0:00:21]} 123. Kd4 {[%emt 0:00:05]} Kd2 {[%emt 0:00:29]} 124. Ra3 {[%emt 0:00:05]} Ke1 {[%emt 0:00:16]} 125. Bf3 {[%emt 0:00:14]} Re8 {[%emt 0:01:26]} 1/2-1/2

[Event "8th Brazilian Open SESC Caioba 2024"]
[Site "Caioba"]
[Date "2024.06.29"]
[Round "8.10"]
[White "Rodriguez Vila, Andres"]
[Black "Nemeth Junior, Henrique"]
[Result "1-0"]
[ECO "B12"]
[WhiteElo "2396"]
[BlackElo "2191"]
[Annotator "RC"]
[PlyCount "45"]
[EventDate "2024.06.15"]
[EventCountry "BRA"]
[SourceTitle "playchess.com"]
[Source "ChessBase"]
[SourceQuality "1"]
[TimeControl "5400+30"]

1. e4 {[%emt 0:00:05]} c6 {[%emt 0:00:13]} 2. d4 {[%emt 0:00:09]} d5 {[%emt 0:00:07]} 3. f3 {[%emt 0:00:19]} Qb6 {[%emt 0:00:22]} 4. Nc3 {[%emt 0:00:12]} dxe4 {[%emt 0:00:37]} 5. fxe4 {[%emt 0:00:09]} e5 {[%emt 0:00:05]} 6. dxe5 {[%emt 0:01:46]} Be6 {[%emt 0:01:00]} 7. Nf3 {[%emt 0:00:23]} Bc5 {[%emt 0:15:26]} 8. Bd3 {[%emt 0:00:56]} Nd7 {[%emt 0:01:12]} 9. Qd2 {[%emt 0:01:29]} Be7 {[%emt 0:06:33]} 10. b3 {[%emt 0:05:02]} Nc5 {[%emt 0:04:30]} 11. Bb2 {[%emt 0:00:54]} O-O-O {[%emt 0:01:31]} 12. O-O-O {[%emt 0:01:23]} Nh6 {[%emt 0:09:11]} 13. Kb1 {[%emt 0:01:16]} a5 {[%emt 0:02:05]} 14. Ng5 {[%emt 0:11:31]} a4 {[%emt 0:08:25]} 15. Nxe6 {[%emt 0:00:42]} fxe6 {[%emt 0:00:31]} 16. Qe3 {[%emt 0:08:50]} axb3 {[%emt 0:01:48]} 17. axb3 {[%emt 0:02:07]} Kc7 {[%emt 0:05:29]} 18. Bc4 {[%emt 0:01:20]} Ra8 {[%emt 0:00:03]} 19. Bxe6 {[%emt 0:03:44]} Qa5 {[%emt 0:06:24]} 20. Bh3 {[%emt 0:00:34]} b5 {[%emt 0:00:58]} 21. Rd6 {[%emt 0:04:30]} Bxd6 {[%emt 0:13:49]} 22. exd6+ {[%emt 0:00:06]} Kb6 {[%emt 0:00:03]} 23. Qd4 {[%emt 0:00:52]} 1-0

[Event "8th Brazilian Open SESC Caioba 2024"]
[Site "Caioba"]
[Date "2024.06.29"]
[Round "8.11"]
[White "Matsuura, Everaldo"]
[Black "Casalaspro, Mathias Andre"]
[Result "1-0"]
[ECO "A36"]
[WhiteElo "2380"]
[BlackElo "2172"]
[Annotator "RC"]
[PlyCount "111"]
[EventDate "2024.06.15"]
[EventCountry "BRA"]
[SourceTitle "playchess.com"]
[Source "ChessBase"]
[SourceQuality "1"]
[TimeControl "5400+30"]

1. c4 {[%emt 0:05:28]} Nf6 {[%emt 0:00:18]} 2. g3 {[%emt 0:01:10]} g6 {[%emt 0:00:13]} 3. Bg2 {[%emt 0:00:18]} Bg7 {[%emt 0:00:11]} 4. Nc3 {[%emt 0:00:36]} O-O {[%emt 0:00:20]} 5. e4 {[%emt 0:00:21]} d6 {[%emt 0:00:37]} 6. Nge2 {[%emt 0:01:00]} c5 {[%emt 0:00:34]} 7. O-O {[%emt 0:00:21]} Nc6 {[%emt 0:00:19]} 8. d3 {[%emt 0:00:18]} Ne8 {[%emt 0:00:56]} 9. Be3 {[%emt 0:00:57]} Nd4 {[%emt 0:02:11]} 10. Rb1 {[%emt 0:02:07]} Rb8 {[%emt 0:13:09]} 11. a3 {[%emt 0:02:55]} a6 {[%emt 0:04:49]} 12. b4 {[%emt 0:02:00]} Nc7 {[%emt 0:04:46]} 13. bxc5 {[%emt 0:11:39]} dxc5 {[%emt 0:00:20]} 14. Na4 {[%emt 0:00:47]} Nce6 {[%emt 0:04:06]} 15. Nb6 {[%emt 0:01:49]} Nxe2+ {[%emt 0:04:03]} 16. Qxe2 {[%emt 0:01:00]} Nd4 {[%emt 0:00:10]} 17. Qd1 {[%emt 0:03:39]} Bd7 {[%emt 0:03:40]} 18. f4 {[%emt 0:13:04]} Bb5 {[%emt 0:12:26]} 19. Nd5 {[%emt 0:05:08]} Bd7 {[%emt 0:09:19]} 20. f5 {[%emt 0:13:36]} gxf5 {[%emt 0:02:40]} 21. Qh5 {[%emt 0:02:00]} e6 {[%emt 0:04:35]} 22. exf5 {[%emt 0:09:36]} Nxf5 {[%emt 0:10:48]} 23. Rxf5 {[%emt 0:03:37]} exf5 {[%emt 0:01:01]} 24. Bxc5 {[%emt 0:01:35]} Re8 {[%emt 0:20:59]} 25. Bb6 {[%emt 0:00:59]} Qc8 {[%emt 0:00:00]} 26. Qh4 {[%emt 0:04:32]} Bc6 {[%emt 0:00:00]} 27. Ne7+ {[%emt 0:02:09]} Rxe7 {[%emt 0:00:00]} 28. Qxe7 {[%emt 0:00:11]} Bxg2 {[%emt 0:00:00]} 29. Kxg2 {[%emt 0:01:17]} Qc6+ {[%emt 0:00:00]} 30. Kg1 {[%emt 0:00:51]} Re8 {[%emt 0:00:00]} 31. Qc5 {[%emt 0:01:37]} Qf3 {[%emt 0:00:00]} 32. Qd5 {[%emt 0:01:20]} Qe2 {[%emt 0:00:00]} 33. Qxf5 {[%emt 0:01:03]} Re6 {[%emt 0:00:00]} 34. Bc5 {[%emt 0:02:56]} Re5 {[%emt 0:03:17]} 35. Qc8+ {[%emt 0:01:21]} Re8 {[%emt 0:00:01]} 36. Qd7 {[%emt 0:01:02]} Bh6 {[%emt 0:00:56]} 37. Rf1 {[%emt 0:00:46]} Be3+ {[%emt 0:00:53]} 38. Bxe3 {[%emt 0:00:08]} Qxe3+ {[%emt 0:00:00]} 39. Kg2 {[%emt 0:04:47]} Re7 {[%emt 0:02:23]} 40. Qd5 {[%emt 0:00:00]} Qd2+ {[%emt 0:00:00]} 41. Rf2 {[%emt 0:00:00]} Qh6 {[%emt 0:00:00]} 42. Qd8+ {[%emt 0:00:00]} Qf8 {[%emt 0:00:00]} 43. Qxf8+ {[%emt 0:02:00]} Kxf8 44. Kf3 {[%emt 0:00:00]} Re5 {[%emt 0:01:06]} 45. Rb2 {[%emt 0:00:00]} b5 {[%emt 0:00:48]} 46. d4 {[%emt 0:00:00]} Rh5 {[%emt 0:00:02]} 47. c5 {[%emt 0:00:00]} Ke7 {[%emt 0:00:08]} 48. Ke4 {[%emt 0:00:36]} Kd7 {[%emt 0:01:08]} 49. d5 {[%emt 0:00:21]} f6 {[%emt 0:00:27]} 50. Rc2 {[%emt 0:00:51]} Re5+ {[%emt 0:00:21]} 51. Kd4 {[%emt 0:00:23]} Re8 {[%emt 0:00:39]} 52. c6+ {[%emt 0:00:38]} Kd6 {[%emt 0:00:10]} 53. Rf2 {[%emt 0:00:19]} Rf8 {[%emt 0:00:01]} 54. Re2 {[%emt 0:00:20]} f5 {[%emt 0:01:01]} 55. Re6+ {[%emt 0:02:32]} Kc7 {[%emt 0:02:09]} 56. Re7+ {[%emt 0:00:00]} 1-0

[Event "8th Brazilian Open SESC Caioba 2024"]
[Site "Caioba"]
[Date "2024.06.29"]
[Round "8.12"]
[White "Pinero Rodriguez, Carlos Jose"]
[Black "Rodi, Luis Ernesto"]
[Result "0-1"]
[ECO "A12"]
[WhiteElo "2284"]
[BlackElo "2208"]
[Annotator "RC"]
[PlyCount "100"]
[EventDate "2024.06.15"]
[EventCountry "BRA"]
[SourceTitle "playchess.com"]
[Source "ChessBase"]
[SourceQuality "1"]
[TimeControl "5400+30"]

1. Nf3 {[%emt 0:03:53]} d5 {[%emt 0:01:17]} 2. c4 {[%emt 0:01:53]} c6 {[%emt 0:01:03]} 3. e3 {[%emt 0:02:14]} Nf6 {[%emt 0:00:18]} 4. b3 {[%emt 0:00:01]} Bg4 {[%emt 0:01:10]} 5. Bb2 {[%emt 0:00:21]} Nbd7 {[%emt 0:00:28]} 6. Be2 {[%emt 0:02:03]} e6 {[%emt 0:00:00]} 7. h3 {[%emt 0:00:13]} Bh5 {[%emt 0:00:10]} 8. d3 {[%emt 0:01:20]} h6 {[%emt 0:01:05]} 9. Nbd2 {[%emt 0:00:49]} Bd6 {[%emt 0:03:48]} 10. O-O {[%emt 0:07:30]} O-O {[%emt 0:00:28]} 11. Nh4 {[%emt 0:04:13]} Bxe2 {[%emt 0:02:11]} 12. Qxe2 {[%emt 0:00:02]} Re8 {[%emt 0:00:42]} 13. Nhf3 {[%emt 0:05:20]} e5 {[%emt 0:02:43]} 14. cxd5 {[%emt 0:00:18]} cxd5 {[%emt 0:00:37]} 15. d4 {[%emt 0:12:43]} e4 {[%emt 0:03:58]} 16. Nh4 {[%emt 0:01:04]} a6 {[%emt 0:02:46]} 17. Nf5 {[%emt 0:03:19]} Bf8 {[%emt 0:00:58]} 18. Rac1 {[%emt 0:05:26]} Qb6 {[%emt 0:03:23]} 19. Nb1 {[%emt 0:03:42]} Qe6 {[%emt 0:01:30]} 20. Ng3 {[%emt 0:01:11]} Rac8 {[%emt 0:00:27]} 21. Ba3 {[%emt 0:04:48]} Bxa3 {[%emt 0:09:22]} 22. Nxa3 {[%emt 0:00:03]} Nb8 {[%emt 0:00:11]} 23. Qd2 {[%emt 0:06:29]} Rc6 {[%emt 0:05:16]} 24. Rxc6 {[%emt 0:00:41]} Nxc6 {[%emt 0:00:06]} 25. Rc1 {[%emt 0:00:41]} Rc8 {[%emt 0:01:19]} 26. Nb1 {[%emt 0:02:19]} Ne7 {[%emt 0:02:16]} 27. Nc3 {[%emt 0:00:45]} Rc6 {[%emt 0:01:23]} 28. Na4 {[%emt 0:00:29]} Nd7 {[%emt 0:00:41]} 29. Nc5 {[%emt 0:01:56]} Nxc5 {[%emt 0:15:20]} 30. dxc5 {[%emt 0:00:36]} Qc8 {[%emt 0:00:09]} 31. b4 {[%emt 0:00:12]} Rg6 {[%emt 0:00:09]} 32. Ne2 {[%emt 0:10:17]} Rg5 {[%emt 0:03:15]} 33. Nf4 {[%emt 0:00:12]} Qf5 {[%emt 0:02:24]} 34. Rd1 {[%emt 0:02:33]} Qd7 {[%emt 0:05:48]} 35. Kh1 {[%emt 0:01:18]} Rf5 {[%emt 0:03:18]} 36. a3 {[%emt 0:01:10]} Qa4 {[%emt 0:01:43]} 37. Ra1 {[%emt 0:02:15]} Qc6 {[%emt 0:00:40]} 38. Qd4 {[%emt 0:07:58]} Qa4 {[%emt 0:04:21]} 39. g4 {[%emt 0:01:45]} Rg5 {[%emt 0:00:23]} 40. Rg1 {[%emt 0:00:39]} Qd7 {[%emt 0:00:51]} 41. Rd1 {[%emt 0:02:28]} Qa4 {[%emt 0:06:42]} 42. Rg1 {[%emt 0:00:27]} Qxa3 {[%emt 0:04:02]} 43. h4 {[%emt 0:00:20]} Nc6 {[%emt 0:00:06]} 44. Qd2 {[%emt 0:02:02]} Re5 {[%emt 0:00:07]} 45. Nxd5 {[%emt 0:01:58]} Qd3 {[%emt 0:00:57]} 46. Qxd3 {[%emt 0:00:54]} exd3 {[%emt 0:00:07]} 47. Nf4 {[%emt 0:00:37]} Nxb4 {[%emt 0:00:11]} 48. Rb1 {[%emt 0:00:24]} Rxc5 {[%emt 0:00:53]} 49. Rxb4 {[%emt 0:00:13]} d2 {[%emt 0:00:08]} 50. Rd4 {[%emt 0:00:54]} Rc1+ {[%emt 0:00:14]} 0-1

[Event "8th Brazilian Open SESC Caioba 2024"]
[Site "Caioba"]
[Date "2024.06.29"]
[Round "8.13"]
[White "Cunha, Lucas Aguiar"]
[Black "Martins, Vinicius Tine"]
[Result "1/2-1/2"]
[ECO "A48"]
[WhiteElo "2239"]
[BlackElo "2268"]
[Annotator "RC"]
[PlyCount "181"]
[EventDate "2024.06.15"]
[EventCountry "BRA"]
[SourceTitle "playchess.com"]
[Source "ChessBase"]
[SourceQuality "1"]
[TimeControl "5400+30"]

1. d4 {[%emt 0:02:39]} Nf6 {[%emt 0:09:15]} 2. Bf4 {[%emt 0:00:09]} g6 {[%emt 0:04:23]} 3. e3 {[%emt 0:02:21]} Bg7 {[%emt 0:03:51]} 4. Nf3 {[%emt 0:00:09]} d6 {[%emt 0:00:27]} 5. Be2 {[%emt 0:00:29]} O-O {[%emt 0:00:55]} 6. O-O {[%emt 0:00:29]} Nbd7 {[%emt 0:00:49]} 7. Nbd2 {[%emt 0:00:21]} c5 {[%emt 0:04:08]} 8. c3 {[%emt 0:00:25]} b6 {[%emt 0:00:28]} 9. a4 {[%emt 0:00:08]} a6 {[%emt 0:00:26]} 10. h3 {[%emt 0:00:34]} Bb7 {[%emt 0:00:12]} 11. Bh2 {[%emt 0:00:11]} Ne4 {[%emt 0:08:55]} 12. Nxe4 {[%emt 0:05:43]} Bxe4 {[%emt 0:00:05]} 13. Nd2 {[%emt 0:00:04]} Bb7 {[%emt 0:03:27]} 14. b4 {[%emt 0:12:21]} Nf6 {[%emt 0:12:56]} 15. Qb1 {[%emt 0:01:43]} Nd5 {[%emt 0:20:58]} 16. Qb3 {[%emt 0:01:22]} Rb8 {[%emt 0:08:08]} 17. Rac1 {[%emt 0:09:10]} cxb4 {[%emt 0:01:19]} 18. cxb4 {[%emt 0:00:01]} b5 {[%emt 0:00:15]} 19. axb5 {[%emt 0:02:51]} axb5 {[%emt 0:00:11]} 20. Ra1 {[%emt 0:02:36]} Qb6 {[%emt 0:03:36]} 21. Ra5 {[%emt 0:01:26]} Bc6 {[%emt 0:02:31]} 22. Rfa1 {[%emt 0:09:19]} Nc7 {[%emt 0:00:24]} 23. Qc2 {[%emt 0:06:34]} Nd5 {[%emt 0:05:04]} 24. Qb3 {[%emt 0:01:40]} Nc7 {[%emt 0:00:08]} 25. Rc1 {[%emt 0:01:57]} Qb7 {[%emt 0:03:16]} 26. Qa3 {[%emt 0:03:14]} Rfc8 {[%emt 0:04:13]} 27. Bg3 {[%emt 0:11:50]} Bf6 {[%emt 0:00:42]} 28. Bg4 {[%emt 0:01:27]} Ne6 {[%emt 0:00:02]} 29. Ra7 {[%emt 0:01:00]} Ra8 {[%emt 0:01:25]} 30. Rxb7 {[%emt 0:00:19]} Rxa3 {[%emt 0:00:01]} 31. Rb6 {[%emt 0:00:08]} Bd7 {[%emt 0:00:07]} 32. Rxc8+ {[%emt 0:00:05]} Bxc8 {[%emt 0:00:08]} 33. Rb8 {[%emt 0:08:21]} Rc3 {[%emt 0:00:08]} 34. h4 {[%emt 0:00:59]} h5 {[%emt 0:00:33]} 35. Bh3 {[%emt 0:00:00]} d5 {[%emt 0:01:43]} 36. Rxb5 {[%emt 0:04:14]} Rc2 {[%emt 0:00:03]} 37. Nb3 {[%emt 0:02:41]} Kg7 {[%emt 0:02:08]} 38. Rxd5 {[%emt 0:01:07]} Rb2 {[%emt 0:00:17]} 39. Nc5 {[%emt 0:00:57]} Rxb4 {[%emt 0:00:25]} 40. Nxe6+ {[%emt 0:00:01]} Bxe6 {[%emt 0:00:37]} 41. Bxe6 {[%emt 0:00:03]} fxe6 {[%emt 0:00:02]} 42. Ra5 {[%emt 0:01:16]} Rb1+ {[%emt 0:00:02]} 43. Kh2 {[%emt 0:00:01]} Kf7 {[%emt 0:01:05]} 44. Ra8 {[%emt 0:01:07]} Rd1 {[%emt 0:00:16]} 45. Rc8 {[%emt 0:01:38]} Re1 {[%emt 0:00:47]} 46. Rd8 {[%emt 0:00:20]} Rd1 {[%emt 0:00:23]} 47. f3 {[%emt 0:00:19]} Rd3 {[%emt 0:00:21]} 48. Bf2 {[%emt 0:02:00]} Rd2 {[%emt 0:00:07]} 49. Kg1 {[%emt 0:00:39]} Rd1+ {[%emt 0:00:02]} 50. Kh2 {[%emt 0:00:05]} Rd2 {[%emt 0:00:05]} 51. Kg3 {[%emt 0:03:33]} Bxh4+ {[%emt 0:00:18]} 52. Kxh4 {[%emt 0:00:05]} Rxf2 {[%emt 0:00:07]} 53. Kg3 {[%emt 0:00:01]} Re2 {[%emt 0:00:35]} 54. e4 {[%emt 0:00:01]} Rd2 {[%emt 0:00:15]} 55. Kh3 {[%emt 0:00:30]} Rf2 {[%emt 0:01:36]} 56. Kh2 {[%emt 0:00:33]} Rd2 {[%emt 0:00:26]} 57. Kg3 {[%emt 0:00:01]} Kf6 {[%emt 0:00:48]} 58. Kh3 {[%emt 0:00:54]} Kf7 {[%emt 0:00:27]} 59. g4 {[%emt 0:00:19]} hxg4+ {[%emt 0:01:52]} 60. Kxg4 {[%emt 0:00:02]} e5 {[%emt 0:00:25]} 61. d5 {[%emt 0:00:03]} Rg2+ {[%emt 0:00:15]} 62. Kh3 {[%emt 0:00:01]} Rg1 {[%emt 0:00:31]} 63. Kh2 {[%emt 0:01:52]} Re1 {[%emt 0:00:44]} 64. Rc8 {[%emt 0:00:14]} g5 {[%emt 0:00:41]} 65. Kg3 {[%emt 0:00:15]} Rg1+ {[%emt 0:00:49]} 66. Kf2 {[%emt 0:00:01]} Ra1 {[%emt 0:00:16]} 67. Rc6 {[%emt 0:00:05]} g4 {[%emt 0:00:14]} 68. Re6 {[%emt 0:02:55]} gxf3 {[%emt 0:00:31]} 69. Kxf3 {[%emt 0:00:14]} Rd1 {[%emt 0:00:38]} 70. Rxe5 {[%emt 0:00:08]} Ke8 {[%emt 0:00:59]} 71. Re6 {[%emt 0:00:20]} Kd7 {[%emt 0:00:02]} 72. Ra6 {[%emt 0:00:18]} Rh1 {[%emt 0:00:42]} 73. Ke3 {[%emt 0:02:41]} Rh3+ {[%emt 0:00:18]} 74. Kd4 {[%emt 0:00:01]} Rh4 {[%emt 0:00:10]} 75. Ra8 {[%emt 0:01:10]} Rg4 {[%emt 0:00:21]} 76. Ke5 {[%emt 0:01:02]} Rg5+ {[%emt 0:00:24]} 77. Kf4 {[%emt 0:00:39]} Rg1 {[%emt 0:00:38]} 78. Ke5 {[%emt 0:00:20]} Rg5+ {[%emt 0:00:07]} 79. Kf4 {[%emt 0:00:22]} Rg1 {[%emt 0:00:03]} 80. Kf5 {[%emt 0:00:14]} Rh1 {[%emt 0:01:31]} 81. Ra7+ {[%emt 0:00:18]} Kd6 {[%emt 0:01:14]} 82. e5+ {[%emt 0:02:39]} Kxd5 {[%emt 0:00:02]} 83. Rd7+ {[%emt 0:00:06]} Kc6 {[%emt 0:00:08]} 84. Rxe7 {[%emt 0:00:02]} Rh5+ {[%emt 0:01:07]} 85. Kg6 {[%emt 0:00:01]} Rh1 {[%emt 0:00:15]} 86. Kf6 {[%emt 0:00:37]} Rh6+ {[%emt 0:00:11]} 87. Kf7 {[%emt 0:01:52]} Rh7+ {[%emt 0:00:44]} 88. Ke6 {[%emt 0:00:25]} Rh6+ {[%emt 0:00:12]} 89. Kf5 {[%emt 0:00:11]} Rh5+ {[%emt 0:00:17]} 90. Kg6 {[%emt 0:00:07]} Rh1 {[%emt 0:00:11]} 91. Kf5 {[%emt 0:01:34]} 1/2-1/2